fUST/lending_fUST_20240829
["ID","MTS","AMOUNT","RATE_DAILY","PERIOD"]
[336467461,1724860805042,5067.97107764,0.00013627,2]
[336467462,1724860805353,5000.0,0.00013627,2]
[336467463,1724860805802,5000.0,0.00013627,2]
[336467464,1724860806164,5000.0,0.00013627,2]
[336467465,1724860806450,5000.0,0.00013627,2]
[336467467,1724860844938,2800.0,0.00013627,2]
[336467478,1724861103314,1000.0,0.00013,2]
[336467479,1724861103343,1000.0,0.000134,2]
[336467480,1724861245144,-695.28989851,0.00014245,2]
[336467481,1724861245166,-207.150418,0.00014247,2]
[336467482,1724861245188,-739.223909,0.00014247,2]
[336467483,1724861245210,-218.0063828,0.00014519,2]
[336467484,1724861245232,-54.02877238,0.00014519,2]
[336467485,1724861247177,-266.98956063,0.00014519,2]
[336467486,1724861247198,-309.30406586,0.00016517,2]
[336467487,1724861247220,-194.54024404,0.00018269,2]
[336467533,1724861432605,-254.12158803,0.00014245,2]
[336467535,1724861432617,-47.87841197,0.00015069,2]
[336467538,1724861432630,-331.95642417,0.00015069,2]
[336467540,1724861432641,-530.17421359,0.00017251,2]
[336467608,1724861438726,-1969.82578641,0.00017251,2]
[336467609,1724861438737,-137.85724876,0.0001726,2]
[336467610,1724861438885,-2362.14275124,0.0001726,2]
[336467612,1724861438895,-763.94125676,0.00018269,2]
[336467613,1724861439067,26617.11108062,0.00025,120]
[336467622,1724861440810,-2041.5184992,0.00018269,2]
[336467623,1724861440821,-551.39161732,0.00018269,2]
[336467624,1724861440831,-1975.106526,0.00018299,2]
[336467626,1724861440840,-500.0,0.00018537,2]
[336467628,1724861440850,-500.0,0.00018604,2]
[336467630,1724861440860,-642.255783,0.00018904,2]
[336467632,1724861440869,-500.0,0.00018996,2]
[336467634,1724861440879,-500.0,0.00018997,2]
[336467636,1724861440888,-828.12622737,0.00019,19]
[336467650,1724861441125,-171.87377263,0.00019,19]
[336467651,1724861441136,-500.0,0.00019094,2]
[336467652,1724861441146,-162.331416,0.00019178,2]
[336467654,1724861441156,-500.0,0.00019232,2]
[336467655,1724861441167,-500.0,0.00019337,2]
[336467656,1724861441177,-500.0,0.00019358,2]
[336467658,1724861441187,-500.0,0.00019405,2]
[336467659,1724861441197,-153.1137214,0.00019452,2]
[336467660,1724861441207,-468.10577437,0.00019458,2]
[336467661,1724861441217,-5611.6719691,0.00019473,2]
[336467662,1724861441226,-155.16537654,0.00019485,2]
[336467663,1724861441237,-155.16537654,0.00019485,2]
[336467664,1724861441246,-155.16537654,0.00019485,2]
[336467665,1724861441256,-155.16537654,0.00019485,2]
[336467666,1724861441266,-155.16537654,0.00019485,2]
[336467667,1724861441275,-155.16537654,0.00019485,2]
[336467668,1724861441285,-155.16537654,0.00019485,2]
[336467669,1724861441296,-155.16537654,0.00019485,2]
[336467670,1724861441306,-155.16537654,0.00019485,2]
[336467671,1724861441316,-155.16537654,0.00019485,2]
[336467672,1724861441325,-155.16537654,0.00019485,2]
[336467673,1724861441334,-155.16537654,0.00019485,2]
[336467674,1724861441344,-155.16537654,0.00019485,2]
[336467675,1724861441354,-155.16537654,0.00019485,2]
[336467676,1724861441363,-155.16537654,0.00019485,2]
[336467677,1724861441373,-155.16537654,0.00019485,2]
[336467678,1724861441382,-155.16537654,0.00019485,2]
[336467679,1724861441392,-155.16537654,0.00019485,2]
[336467680,1724861441402,-155.66,0.00019485,2]
[336467681,1724861441413,-152.84842044,0.00019485,2]
[336467682,1724861441423,-152.84842044,0.00019485,2]
[336467683,1724861441432,-152.84842044,0.00019485,2]
[336467684,1724861441442,-152.84842044,0.00019485,2]
[336467685,1724861441452,-152.84842044,0.00019485,2]
[336467686,1724861441462,-152.84842044,0.00019485,2]
[336467687,1724861441471,-152.84842044,0.00019485,2]
[336467688,1724861441482,-152.84842044,0.00019485,2]
[336467689,1724861441492,-152.84842044,0.00019485,2]
[336467690,1724861441502,-152.84842044,0.00019485,2]
[336467691,1724861441511,-152.84842044,0.00019485,2]
[336467692,1724861441520,-152.84842044,0.00019485,2]
[336467693,1724861441530,-152.84842044,0.00019485,2]
[336467694,1724861441539,-153.34,0.00019485,2]
[336467695,1724861441549,-500.0,0.00019529,2]
[336467696,1724861441558,-2464.96407513,0.00019544,2]
[336467697,1724861441567,-239.94697089,0.00019553,2]
[336467698,1724861441577,-589.70343085,0.00019554,2]
[336467699,1724861441587,-589.70343085,0.00019554,2]
[336467700,1724861441597,-589.70343085,0.00019554,2]
[336467701,1724861441606,-589.70343085,0.00019554,2]
[336467702,1724861441616,-589.70343085,0.00019554,2]
[336467703,1724861441625,-589.70343085,0.00019554,2]
[336467704,1724861441635,-589.70343085,0.00019554,2]
[336467705,1724861441645,-589.70343085,0.00019554,2]
[336467706,1724861441656,-589.70343085,0.00019554,2]
[336467707,1724861441666,-589.70343085,0.00019554,2]
[336467708,1724861441676,-589.70343085,0.00019554,2]
[336467709,1724861441685,-589.70343085,0.00019554,2]
[336467710,1724861441695,-589.70343085,0.00019554,2]
[336467711,1724861441705,-589.70343085,0.00019554,2]
[336467712,1724861441715,-589.70343085,0.00019554,2]
[336467713,1724861441724,-589.70343085,0.00019554,2]
[336467714,1724861441736,-589.70343085,0.00019554,2]
[336467715,1724861441746,-589.70343085,0.00019554,2]
[336467716,1724861441756,-589.70343085,0.00019554,2]
[336467717,1724861441766,-590.2,0.00019554,2]
[336467718,1724861441775,-428.05057724,0.00019554,2]
[336467719,1724861441785,-428.05057724,0.00019554,2]
[336467720,1724861441795,-428.05057724,0.00019554,2]
[336467721,1724861441805,-428.05057724,0.00019554,2]
[336467722,1724861441815,-428.05057724,0.00019554,2]
[336467723,1724861441825,-428.05057724,0.00019554,2]
[336467724,1724861441835,-428.05057724,0.00019554,2]
[336467725,1724861441845,-428.05057724,0.00019554,2]
[336467726,1724861441854,-428.05057724,0.00019554,2]
[336467727,1724861441864,-428.05057724,0.00019554,2]
[336467728,1724861441874,-428.05057724,0.00019554,2]
[336467729,1724861441887,-428.05057724,0.00019554,2]
[336467730,1724861441897,-428.05057724,0.00019554,2]
[336467731,1724861441907,-428.05057724,0.00019554,2]
[336467732,1724861441916,-428.05057724,0.00019554,2]
[336467733,1724861441926,-428.05057724,0.00019554,2]
[336467734,1724861441935,-428.05057724,0.00019554,2]
[336467735,1724861441946,-428.05057724,0.00019554,2]
[336467736,1724861441959,-428.05057724,0.00019554,2]
[336467737,1724861441970,-428.55,0.00019554,2]
[336467738,1724861441980,-500.0,0.00019567,2]
[336467739,1724861441990,-500.0,0.00019567,2]
[336467740,1724861442000,-401.64428309,0.00019567,2]
[336467741,1724861442011,-500.0,0.00019567,2]
[336467742,1724861442021,-500.0,0.00019567,2]
[336467743,1724861442030,-500.0,0.00019567,2]
[336467744,1724861442040,-4073.1900532,0.00019568,2]
[336467745,1724861442053,-1111.59701229,0.00019568,2]
[336467788,1724861446360,-76969.74671921,0.00019568,2]
[336467790,1724861446370,-500.0,0.00019572,2]
[336467791,1724861446380,-500.0,0.00019572,2]
[336467792,1724861446390,-500.0,0.00019572,2]
[336467793,1724861446399,-418.83522086,0.00019572,2]
[336467794,1724861446412,-500.0,0.00019573,2]
[336467795,1724861446422,-500.0,0.00019573,2]
[336467796,1724861446433,-500.0,0.00019573,2]
[336467797,1724861446442,-500.0,0.00019573,2]
[336467798,1724861446452,-4995.28,0.00019573,2]
[336467799,1724861446461,-1834.9,0.00019573,2]
[336467800,1724861446471,-1963.25,0.00019573,2]
[336467802,1724861446480,-2904.94,0.00019573,2]
[336467804,1724861446492,-7393.53,0.00019573,2]
[336467806,1724861446501,-788.02,0.00019573,2]
[336467807,1724861446510,-7405.77,0.00019573,2]
[336467809,1724861446519,-1909.51,0.00019573,2]
[336467810,1724861446528,-2303.49,0.00019573,2]
[336467811,1724861446538,-500.0,0.00019573,2]
[336467812,1724861446551,-500.0,0.00019573,2]
[336467813,1724861446560,-4880.79,0.00019573,2]
[336467814,1724861446569,-4880.79,0.00019573,2]
[336467815,1724861446578,-2897.7,0.00019573,2]
[336467816,1724861446588,-1046.34,0.00019573,2]
[336467817,1724861446597,-1283.62,0.00019573,2]
[336467818,1724861446607,-1871.86,0.00019573,2]
[336467819,1724861446617,-500.0,0.00019573,2]
[336467820,1724861446627,-82154.5337847,0.00019573,2]
[336467821,1724861446636,-9329.03145478,0.00019574,5]
[336467822,1724861446646,-4880.79,0.00019574,2]
[336467823,1724861446656,-4880.79,0.00019574,2]
[336467824,1724861446665,-246463.601354,0.00019574,2]
[336467825,1724861446674,-500.0,0.00019577,2]
[336467826,1724861446684,-500.0,0.00019577,2]
[336467827,1724861446693,-13221.18261157,0.00019578,5]
[336467828,1724861446817,-4939.223634,0.00019578,2]
[336467829,1724861446827,-4939.223634,0.00019578,2]
[336467830,1724861446836,-2022.944138,0.00019578,2]
[336467831,1724861446846,-2022.944138,0.00019578,2]
[336467832,1724861446855,-151.0,0.00019578,2]
[336467833,1724861446865,-88888.0,0.00019578,2]
[336467834,1724861446874,-500.0,0.00019582,2]
[336467835,1724861446884,-7433.18,0.00019583,2]
[336467836,1724861446894,-5212.58,0.00019583,2]
[336467837,1724861446903,-500.0,0.00019583,2]
[336467838,1724861446912,-500.0,0.00019583,2]
[336467839,1724861446921,-1640.83,0.00019583,2]
[336467840,1724861446931,-4365.01,0.00019583,2]
[336467841,1724861446942,-500.0,0.00019583,2]
[336467842,1724861446951,-295.1176766,0.00019583,2]
[336467843,1724861446960,-4880.79,0.00019583,2]
[336467844,1724861446969,-4880.79,0.00019583,2]
[336467845,1724861446979,-12675.43,0.00019583,2]
[336467846,1724861446991,-4880.79,0.00019583,2]
[336467847,1724861447001,-3008.32,0.00019583,2]
[336467848,1724861447011,-3478.62,0.00019583,2]
[336467849,1724861447020,-500.0,0.00019583,2]
[336467850,1724861447030,-224.99246146,0.00019584,2]
[336467851,1724861447040,-500.0,0.00019584,2]
[336467852,1724861447050,-500.0,0.00019584,2]
[336467853,1724861447059,-360.24889575,0.00019584,2]
[336467854,1724861447069,-606.1989321,0.00019584,2]
[336467855,1724861447080,-500.0,0.00019584,2]
[336467856,1724861447090,-500.0,0.00019584,2]
[336467857,1724861447100,-500.0,0.00019584,2]
[336467858,1724861447110,-379.20726515,0.00019584,2]
[336467859,1724861447122,-500.0,0.00019584,2]
[336467860,1724861447137,-500.0,0.00019584,2]
[336467861,1724861447147,-500.0,0.00019584,2]
[336467862,1724861447157,-500.0,0.00019584,2]
[336467863,1724861447167,-500.0,0.00019584,2]
[336467864,1724861447177,-500.0,0.00019584,2]
[336467865,1724861447187,-500.0,0.00019584,2]
[336467866,1724861447196,-500.0,0.00019584,2]
[336467867,1724861447208,-500.0,0.00019584,2]
[336467868,1724861447217,-500.0,0.00019584,2]
[336467869,1724861447228,-500.0,0.00019584,2]
[336467870,1724861447239,-500.0,0.00019584,2]
[336467871,1724861447249,-500.0,0.00019584,2]
[336467872,1724861447259,-500.0,0.00019584,2]
[336467873,1724861447268,-500.0,0.00019584,2]
[336467874,1724861447278,-500.0,0.00019584,2]
[336467875,1724861447287,-500.0,0.00019584,2]
[336467876,1724861447297,-500.0,0.00019584,2]
[336467877,1724861447306,-500.0,0.00019584,2]
[336467878,1724861447315,-500.0,0.00019584,2]
[336467879,1724861447324,-500.0,0.00019584,2]
[336467880,1724861447333,-500.0,0.00019584,2]
[336467881,1724861447343,-891.13,0.00019584,2]
[336467882,1724861447352,-500.0,0.00019584,2]
[336467883,1724861447362,-1064.58,0.00019584,2]
[336467884,1724861447372,-500.0,0.00019584,2]
[336467885,1724861447381,-500.0,0.00019584,2]
[336467886,1724861447390,-500.0,0.00019584,2]
[336467887,1724861447399,-500.0,0.00019584,2]
[336467888,1724861447408,-500.0,0.00019584,2]
[336467889,1724861447418,-501.55368529,0.00019584,2]
[336467890,1724861447428,-500.0,0.00019584,2]
[336467891,1724861447437,-502.03,0.00019584,2]
[336467892,1724861447446,-500.0,0.00019584,2]
[336467893,1724861447455,-500.0,0.00019584,2]
[336467894,1724861447465,-500.0,0.00019584,2]
[336467895,1724861447474,-963.81,0.00019584,2]
[336467896,1724861447483,-500.0,0.00019584,2]
[336467897,1724861447496,-500.0,0.00019584,2]
[336467898,1724861447509,-500.0,0.00019584,2]
[336467899,1724861447518,-501.6115952,0.00019584,2]
[336467900,1724861447527,-151.0,0.00019584,2]
[336467901,1724861447536,-500.0,0.00019584,2]
[336467902,1724861447547,-500.0,0.00019584,2]
[336467903,1724861447557,-501.37048845,0.00019584,2]
[336467904,1724861447566,-500.0,0.00019584,2]
[336467905,1724861447576,-500.0,0.00019584,2]
[336467906,1724861447586,-500.0,0.00019584,2]
[336467907,1724861447595,-500.0,0.00019584,2]
[336467908,1724861447604,-500.0,0.00019584,2]
[336467909,1724861447613,-502.61829664,0.00019584,2]
[336467910,1724861447622,-500.0,0.00019584,2]
[336467911,1724861447632,-527.07938986,0.00019584,2]
[336467912,1724861447641,-500.0,0.00019584,2]
[336467913,1724861447651,-500.0,0.00019584,2]
[336467914,1724861447659,-520.93139619,0.00019584,2]
[336467915,1724861447669,-500.0,0.00019584,2]
[336467916,1724861447678,-500.0,0.00019584,2]
[336467917,1724861447687,-501.17923489,0.00019584,2]
[336467918,1724861447696,-500.0,0.00019584,2]
[336467919,1724861447705,-500.0,0.00019584,2]
[336467920,1724861447715,-500.0,0.00019584,2]
[336467921,1724861447724,-434.450637,0.00019584,2]
[336467922,1724861447733,-500.0,0.00019584,2]
[336467923,1724861447750,-500.0,0.00019584,2]
[336467924,1724861447760,-434.450637,0.00019584,2]
[336467925,1724861447769,-151.0,0.00019584,2]
[336467926,1724861447778,-501.78518697,0.00019584,2]
[336467927,1724861447787,-151.0,0.00019584,2]
[336467928,1724861447796,-5630.057203,0.00019584,2]
[336467929,1724861447806,-500.0,0.00019584,2]
[336467930,1724861447814,-500.0,0.00019584,2]
[336467931,1724861447824,-5630.057203,0.00019584,2]
[336467932,1724861447833,-500.98528648,0.00019584,2]
[336467933,1724861447843,-500.0,0.00019584,2]
[336467934,1724861447852,-258.96752197,0.00019584,2]
[336467935,1724861447861,-500.0,0.00019584,2]
[336467936,1724861447870,-500.0,0.00019584,2]
[336467937,1724861447879,-502.1449473,0.00019584,2]
[336467938,1724861447888,-396.910223,0.00019584,2]
[336467939,1724861447898,-500.0,0.00019584,2]
[336467940,1724861447907,-500.0,0.00019584,2]
[336467941,1724861447916,-500.0,0.00019584,2]
[336467942,1724861447926,-500.0,0.00019584,2]
[336467943,1724861447936,-396.910223,0.00019584,2]
[336467944,1724861447945,-500.0,0.00019584,2]
[336467945,1724861447955,-1575.71,0.00019584,2]
[336467946,1724861447964,-500.0,0.00019584,2]
[336467947,1724861447973,-500.0,0.00019584,2]
[336467948,1724861447982,-151.0,0.00019584,2]
[336467949,1724861447994,-151.0,0.00019584,2]
[336467950,1724861448003,-500.0,0.00019584,2]
[336467951,1724861448012,-151.0,0.00019584,2]
[336467952,1724861448021,-200.285743,0.00019584,2]
[336467953,1724861448030,-278.44104716,0.00019584,2]
[336467954,1724861448040,-500.0,0.00019584,2]
[336467955,1724861448050,-500.0,0.00019584,2]
[336467956,1724861448059,-500.0,0.00019584,2]
[336467957,1724861448069,-500.0,0.00019584,2]
[336467958,1724861448080,-500.94892432,0.00019584,2]
[336467959,1724861448090,-500.0,0.00019584,2]
[336467960,1724861448099,-500.0,0.00019584,2]
[336467961,1724861448109,-151.0,0.00019584,2]
[336467962,1724861448119,-500.0,0.00019584,2]
[336467963,1724861448131,-486.51282134,0.00019584,2]
[336467964,1724861448141,-521.04882143,0.00019584,2]
[336467965,1724861448151,-500.0,0.00019584,2]
[336467966,1724861448162,-500.0,0.00019584,2]
[336467967,1724861448171,-566.41331173,0.00019584,2]
[336467968,1724861448181,-500.0,0.00019584,2]
[336467969,1724861448190,-2441.06,0.00019584,2]
[336467970,1724861448200,-500.0,0.00019584,2]
[336467971,1724861448210,-151.0,0.00019584,2]
[336467972,1724861448220,-579.543644,0.00019584,2]
[336467973,1724861448230,-500.0,0.00019584,2]
[336467974,1724861448244,-579.543644,0.00019584,2]
[336467975,1724861448255,-579.543644,0.00019584,2]
[336467976,1724861448264,-2445.65,0.00019584,2]
[336467977,1724861448274,-579.543644,0.00019584,2]
[336467978,1724861448283,-3605.34,0.00019584,2]
[336467979,1724861448292,-579.543644,0.00019584,2]
[336467980,1724861448303,-579.543644,0.00019584,2]
[336467981,1724861448312,-500.98393887,0.00019584,2]
[336467982,1724861448323,-7804.01,0.00019584,2]
[336467983,1724861448332,-6989.42,0.00019584,2]
[336467984,1724861448342,-500.0,0.00019584,2]
[336467985,1724861448351,-500.0,0.00019584,2]
[336467986,1724861448361,-3432.15,0.00019584,2]
[336467987,1724861448370,-500.0,0.00019584,2]
[336467988,1724861448380,-500.0,0.00019584,2]
[336467989,1724861448389,-500.0,0.00019584,2]
[336467990,1724861448398,-500.0,0.00019584,2]
[336467991,1724861448408,-500.0,0.00019584,2]
[336467992,1724861448418,-500.0,0.00019584,2]
[336467993,1724861448428,-931.19,0.00019584,2]
[336467994,1724861448438,-500.0,0.00019584,2]
[336467995,1724861448447,-500.0,0.00019584,2]
[336467996,1724861448456,-500.0,0.00019584,2]
[336467997,1724861448466,-817.55,0.00019584,2]
[336467998,1724861448475,-500.0,0.00019584,2]
[336467999,1724861448485,-151.0,0.00019584,2]
[336468000,1724861448495,-500.0,0.00019584,2]
[336468001,1724861448504,-500.0,0.00019584,2]
[336468002,1724861448514,-500.0,0.00019584,2]
[336468003,1724861448523,-500.0,0.00019584,2]
[336468004,1724861448532,-500.0,0.00019584,2]
[336468005,1724861448542,-1715.86,0.00019584,2]
[336468006,1724861448551,-500.0,0.00019584,2]
[336468007,1724861448560,-2215.78,0.00019584,2]
[336468008,1724861448571,-991.34,0.00019584,2]
[336468009,1724861448580,-1028.21,0.00019584,2]
[336468010,1724861448589,-500.0,0.00019584,2]
[336468011,1724861448599,-1049.04,0.00019584,2]
[336468012,1724861448608,-500.0,0.00019584,2]
[336468013,1724861448618,-500.0,0.00019584,2]
[336468014,1724861448627,-500.0,0.00019584,2]
[336468015,1724861448638,-500.0,0.00019584,2]
[336468016,1724861448648,-500.0,0.00019584,2]
[336468017,1724861448658,-500.0,0.00019584,2]
[336468018,1724861448667,-10000.0,0.00019584,2]
[336468019,1724861448677,-500.0,0.00019584,2]
[336468020,1724861448686,-10000.0,0.00019584,2]
[336468021,1724861448696,-10000.0,0.00019584,2]
[336468022,1724861448705,-10000.0,0.00019584,2]
[336468023,1724861448714,-1574.19,0.00019584,2]
[336468024,1724861448723,-500.0,0.00019584,2]
[336468025,1724861448732,-1419.19,0.00019584,2]
[336468026,1724861448745,-500.0,0.00019584,2]
[336468027,1724861448755,-10000.0,0.00019584,2]
[336468028,1724861448764,-506.21978238,0.00019584,2]
[336468029,1724861448773,-10000.0,0.00019584,2]
[336468030,1724861448782,-10000.0,0.00019584,2]
[336468031,1724861448791,-10000.0,0.00019584,2]
[336468032,1724861448801,-500.0,0.00019584,2]
[336468033,1724861448810,-500.0,0.00019584,2]
[336468034,1724861448820,-10000.0,0.00019584,2]
[336468035,1724861448829,-10000.0,0.00019584,2]
[336468036,1724861448839,-10000.0,0.00019584,2]
[336468037,1724861448848,-10000.0,0.00019584,2]
[336468038,1724861448858,-1220.18,0.00019584,2]
[336468039,1724861448867,-3455.34,0.00019584,2]
[336468040,1724861448877,-10000.0,0.00019584,2]
[336468041,1724861448886,-500.0,0.00019584,2]
[336468042,1724861448895,-10000.0,0.00019584,2]
[336468043,1724861448905,-10000.0,0.00019584,2]
[336468044,1724861448914,-3345.906843,0.00019584,2]
[336468045,1724861448923,-500.0,0.00019584,2]
[336468046,1724861448933,-500.0,0.00019584,2]
[336468047,1724861448942,-787.68,0.00019584,2]
[336468048,1724861448952,-1574.41,0.00019584,2]
[336468049,1724861448961,-500.0,0.00019584,2]
[336468050,1724861448970,-1161.17,0.00019584,2]
[336468051,1724861448980,-500.0,0.00019584,2]
[336468052,1724861448991,-500.0,0.00019584,2]
[336468053,1724861449000,-1086.03,0.00019584,2]
[336468054,1724861449010,-500.0,0.00019584,2]
[336468055,1724861449020,-500.0,0.00019584,2]
[336468056,1724861449030,-500.96259054,0.00019584,2]
[336468057,1724861449040,-1234.268282,0.00019584,2]
[336468058,1724861449050,-500.0,0.00019584,2]
[336468059,1724861449060,-1234.268282,0.00019584,2]
[336468060,1724861449070,-1234.268282,0.00019584,2]
[336468061,1724861449080,-2104.49,0.00019584,2]
[336468062,1724861449089,-2050.11,0.00019584,2]
[336468063,1724861449098,-500.0,0.00019584,2]
[336468064,1724861449108,-500.0,0.00019584,2]
[336468065,1724861449253,-1234.268282,0.00019584,2]
[336468066,1724861449262,-1234.268282,0.00019584,2]
[336468067,1724861449272,-500.0,0.00019584,2]
[336468068,1724861449283,-1234.268282,0.00019584,2]
[336468069,1724861449293,-2447.77,0.00019584,2]
[336468070,1724861449304,-500.0,0.00019584,2]
[336468071,1724861449314,-500.0,0.00019584,2]
[336468072,1724861449324,-151.0,0.00019584,2]
[336468073,1724861449334,-501.05889519,0.00019584,2]
[336468074,1724861449343,-151.0,0.00019584,2]
[336468075,1724861449353,-500.0,0.00019584,2]
[336468076,1724861449363,-500.0,0.00019584,2]
[336468077,1724861449374,-4939.223634,0.00019584,2]
[336468078,1724861449384,-4939.223634,0.00019584,2]
[336468079,1724861449393,-4939.223634,0.00019584,2]
[336468080,1724861449404,-4939.223634,0.00019584,2]
[336468081,1724861449416,-4939.223634,0.00019584,2]
[336468082,1724861449426,-4939.223634,0.00019584,2]
[336468083,1724861449436,-4939.223634,0.00019584,2]
[336468084,1724861449447,-4939.223634,0.00019584,2]
[336468085,1724861449457,-500.0,0.00019584,2]
[336468086,1724861449466,-4939.223634,0.00019584,2]
[336468087,1724861449477,-4939.223634,0.00019584,2]
[336468088,1724861449491,-1938.39,0.00019584,2]
[336468089,1724861449501,-4939.223634,0.00019584,2]
[336468090,1724861449511,-4939.223634,0.00019584,2]
[336468091,1724861449521,-500.0,0.00019584,2]
[336468092,1724861449530,-500.0,0.00019584,2]
[336468093,1724861449540,-500.0,0.00019584,2]
[336468094,1724861449550,-500.0,0.00019584,2]
[336468095,1724861449560,-500.0,0.00019584,2]
[336468096,1724861449569,-532.59561271,0.00019584,2]
[336468097,1724861449579,-4880.79,0.00019584,2]
[336468098,1724861449588,-500.0,0.00019584,2]
[336468099,1724861449598,-500.0,0.00019584,2]
[336468100,1724861449608,-500.0,0.00019584,2]
[336468101,1724861449618,-500.0,0.00019584,2]
[336468102,1724861449628,-3053.04,0.00019584,2]
[336468103,1724861449638,-747.646905,0.00019584,2]
[336468104,1724861449648,-747.646905,0.00019584,2]
[336468105,1724861449657,-501.14804739,0.00019584,2]
[336468106,1724861449667,-747.646905,0.00019584,2]
[336468107,1724861449677,-747.646905,0.00019584,2]
[336468108,1724861449687,-500.0,0.00019584,2]
[336468109,1724861449697,-747.646905,0.00019584,2]
[336468110,1724861449707,-747.646905,0.00019584,2]
[336468111,1724861449717,-747.646905,0.00019584,2]
[336468112,1724861449727,-747.646905,0.00019584,2]
[336468113,1724861449736,-500.0,0.00019584,2]
[336468114,1724861449748,-500.0,0.00019584,2]
[336468115,1724861449758,-500.0,0.00019584,2]
[336468116,1724861449767,-500.0,0.00019584,2]
[336468117,1724861449777,-500.80277027,0.00019584,2]
[336468118,1724861449787,-500.0,0.00019584,2]
[336468119,1724861449796,-500.0,0.00019584,2]
[336468120,1724861449805,-500.0,0.00019584,2]
[336468121,1724861449814,-500.0,0.00019584,2]
[336468122,1724861449825,-2059.73,0.00019584,2]
[336468123,1724861449835,-500.0,0.00019584,2]
[336468124,1724861449845,-1645.74706,0.00019584,2]
[336468125,1724861449854,-1645.74706,0.00019584,2]
[336468126,1724861449863,-500.0,0.00019584,2]
[336468127,1724861449873,-1645.74706,0.00019584,2]
[336468128,1724861449883,-1645.74706,0.00019584,2]
[336468129,1724861449894,-504.18176821,0.00019584,2]
[336468130,1724861449904,-1645.74706,0.00019584,2]
[336468131,1724861449914,-1645.74706,0.00019584,2]
[336468132,1724861449924,-500.0,0.00019584,2]
[336468133,1724861449934,-1645.74706,0.00019584,2]
[336468134,1724861449943,-500.0,0.00019584,2]
[336468135,1724861449954,-1645.74706,0.00019584,2]
[336468136,1724861449964,-500.0,0.00019584,2]
[336468137,1724861449974,-2022.944138,0.00019584,2]
[336468138,1724861449985,-2022.944138,0.00019584,2]
[336468139,1724861450000,-2022.944138,0.00019584,2]
[336468140,1724861450010,-2022.944138,0.00019584,2]
[336468141,1724861450019,-1762.74,0.00019584,2]
[336468142,1724861450029,-2022.944138,0.00019584,2]
[336468143,1724861450040,-2022.944138,0.00019584,2]
[336468144,1724861450050,-500.0,0.00019584,2]
[336468145,1724861450061,-2022.944138,0.00019584,2]
[336468146,1724861450070,-2022.944138,0.00019584,2]
[336468147,1724861450080,-2022.944138,0.00019584,2]
[336468148,1724861450090,-2022.944138,0.00019584,2]
[336468149,1724861450100,-2022.944138,0.00019584,2]
[336468150,1724861450110,-2022.944138,0.00019584,2]
[336468151,1724861450126,-500.0,0.00019584,2]
[336468152,1724861450135,-2022.944138,0.00019584,2]
[336468153,1724861450145,-500.0,0.00019584,2]
[336468154,1724861450154,-2022.944138,0.00019584,2]
[336468155,1724861450165,-2022.944138,0.00019584,2]
[336468156,1724861450174,-2022.944138,0.00019584,2]
[336468157,1724861450185,-2022.944138,0.00019584,2]
[336468158,1724861450194,-2022.944146,0.00019584,2]
[336468159,1724861450205,-500.0,0.00019584,2]
[336468160,1724861450215,-205.508659,0.00019584,2]
[336468161,1724861450224,-205.508659,0.00019584,2]
[336468162,1724861450234,-151.0,0.00019584,2]
[336468163,1724861450252,-205.508659,0.00019584,2]
[336468164,1724861450262,-151.0,0.00019584,2]